Cogmind - Beta 17 @@@ ROGUE MODE // 2026.08.24 @ 20:22:51 Player: OBLIQUE Result: Destroyed by G-47 Trooper with Particle Gun Performance ------------- Evolutions (2) 1000 Regions Visited (7) 1400 Robots Destroyed (150) 750 Value Destroyed (4032) 4032 Prototype IDs (38) 760 Alien Tech Used (0) 0 Bonus (640) 640 TOTAL SCORE: 8582 Bonus ------- High Alert Combat Kills 340 Aligned with FarCom 300 Cogmind --------- Core Integrity 0/550 Matter 158/300 Energy 114/140 System Corruption 0% Temperature Warm (185) Movement Walking (330) Ox3 Location -8/Materials Parts ------- > --- POWER (1) -------- Light Deuterium Engine > --- PROPULSION (3) --- Carbon-fiber Leg > --- UTILITY (4) ------ Improved Heat Sink Advanced Heat Sink High-capacity Storage Unit > --- WEAPON (3) ------- Particle Gun Heavy Particle Gun > --- INVENTORY (20) --- Light Nuclear Core Titanium Leg Airjet Airjet Airjet Airjet Aerolev Unit Aerolev Unit Medium Storage Unit Chronowheel Flak Cannon Improved Datajack Plasma Cutter Axe Peak State ------------ > --- POWER ------------ Heavy Ion Engine > --- PROPULSION ------- Advanced Treads Advanced Treads Armored Wheel > --- UTILITY ---------- Advanced Heat Sink High-capacity Storage Unit Hardened Light Armor Plating Reflective Plating > --- WEAPON ----------- Spread Laser Heavy Assault Cannon > --- INVENTORY -------- Light Deuterium Engine Carbon-fiber Leg Carbon-fiber Leg Carbon-fiber Leg Titanium Leg Airjet Airjet Airjet Airjet Aerolev Unit Aerolev Unit Medium Storage Unit Chronowheel Heavy Particle Gun Flak Cannon Mini Grenade Launcher Improved Datajack Plasma Cutter Axe [Rating: 36] Favorites ----------- Power Heavy Ion Engine Engine Heavy Ion Engine Propulsion Light Treads Treads Light Treads Leg Aluminum Leg Wheel Armored Wheel Hover Unit Aerolev Unit Flight Unit Improved Flight Unit Utility High-capacity Storage Unit Device Improved Heat Sink Storage High-capacity Storage Unit Processor Visual Processing Unit Protection Hardened Light Armor Plating Weapon Spread Laser Energy Gun Spread Laser Energy Cannon Beam Cannon Ballistic Gun Heavy Assault Rifle Ballistic Cannon Heavy Assault Cannon Launcher Mini Grenade Launcher Impact Weapon Hammer Build | -11 -10 -10 -9 -9 -9 -8 -8 ------- Run | Yrd Mat Min Mat Min Exi Min Mat Slots Evolved 4 | . . . 2 . . . 2 Power . | . . . . . . . . Propulsion 1 | . . . 1 . . . . Utility 2 | . . . . . . . 2 Weapon 1 | . . . 1 . . . . Parts Attached 87 | 7 10 9 34 3 . . 24 Power 10 | 2 2 . 3 1 . . 2 Engine 10 | 2 2 . 3 1 . . 2 Core . | . . . . . . . . Reactor . | . . . . . . . . Propulsion 30 | 2 1 4 12 2 . . 9 Treads 18 | 2 1 . 10 1 . . 4 Leg 9 | . . 4 2 . . . 3 Wheel 1 | . . . . 1 . . . Hover 1 | . . . . . . . 1 Flight 1 | . . . . . . . 1 Utility 16 | 1 4 1 4 . . . 6 Device 7 | . 1 . 3 . . . 3 Storage 4 | 1 2 . 1 . . . . Processor 2 | . 1 1 . . . . . Hackware . | . . . . . . . . Protection 3 | . . . . . . . 3 Artifact . | . . . . . . . . Weapon 31 | 2 3 4 15 . . . 7 Energy Gun 12 | 1 . 1 7 . . . 3 Energy Cannon 6 | . 2 2 2 . . . . Ballistic Gun 6 | 1 1 . 3 . . . 1 Ballistic Cannon 3 | . . . 1 . . . 2 Launcher 3 | . . 1 1 . . . 1 Special Weapon . | . . . . . . . . Impact Weapon 1 | . . . 1 . . . . Slashing Weapon . | . . . . . . . . Piercing Weapon . | . . . . . . . . Special Melee Weapon . | . . . . . . . . Unidentified Prototypes 6 | . . . 3 . . . 3 Parts Lost 29 | . . 12 4 . . . 13 Power 3 | . . 1 1 . . . 1 Propulsion 12 | . . 5 2 . . . 5 Utility 4 | . . 1 . . . . 3 Weapon 10 | . . 5 1 . . . 4 Highest Loss Streak 8 | . . 7 2 . . . 8 To Critical Strikes . | . . . . . . . . Average Backups 16 | 1 11 15 15 19 20 20 18 Power 2 | . 2 5 3 2 2 2 1 Propulsion 6 | . 3 5 4 8 9 9 8 Utility 2 | . 1 2 3 4 4 4 2 Weapon 3 | . 4 3 3 3 3 3 3 Tool/Special . | . . . . . . . . Unused Backups 41 | . 1 . 10 . 1 . 29 Power 6 | . . . 3 . . . 3 Propulsion 20 | . . . 2 . . . 18 Utility 5 | . . . 4 . . . 1 Weapon 7 | . 1 . 1 . 1 . 4 Tool/Special 3 | . . . . . . . 3 Average Slot Usage (%) 94 | . 96 93 95 100 100 100 88 Engine 10 | . 14 13 10 11 11 11 8 Treads 23 | . 28 16 27 26 22 22 16 Leg 2 | . . 9 4 . . . 1 Wheel 4 | . . . . 6 11 11 8 Device 9 | . 7 3 9 11 11 11 9 Storage 11 | . 17 14 11 11 11 11 9 Protection 5 | . . . . . . . 16 Energy Gun 7 | . . . 9 11 11 11 8 Energy Cannon 7 | . 21 24 8 . . . . Ballistic Gun 5 | . 6 . 8 11 11 11 . Ballistic Cannon 5 | . . . 3 11 11 11 8 Peak Build Rating 36 | 6 9 10 19 21 22 22 36 Average Rating 19 | 4 7 8 16 20 21 22 30 On Entrance 13 | . 6 9 7 19 21 22 22 Avg Prop Armor Cover (%) 11 | . . 8 5 11 16 16 10 Naked Turns . | . . . . . . . . Heaviest Build 74 | 12 60 52 59 59 59 59 74 Greatest Support 60 | 40 40 40 60 60 12 12 45 Greatest Overweight (x) 6 | . 1 2 2 4 4 4 6 Average Overweight (x) 2 | . . 1 . 1 4 4 5 Largest Inventory Capacity 20 | 8 20 20 20 20 20 20 20 Average Capacity 18 | 7 17 20 16 20 20 20 20 Most Carried 20 | 4 20 20 20 20 20 20 20 Average Carried 16 | 1 11 15 15 19 19 20 19 Final Capacity 20 | 8 20 20 20 20 20 20 20 Final Carried 20 | 4 20 10 20 20 20 20 14 Class Distribution -------------------- 30% | Mutant 29% | Tank 26% | Scavenger-Gunner 8% | Gunner 3% | Skirmisher Dominant Class ---------------- Mutant | -10/Materials Mutant | -10/Mines Scavenger-Gunner | -9/Materials Gunner | -9/Mines Gunner | -9/Exiles Skirmisher | -8/Mines Tank | -8/Materials Resources | -11 -10 -10 -9 -9 -9 -8 -8 ----------- Run | Yrd Mat Min Mat Min Exi Min Mat Matter Collected 2236 | 222 221 51 757 99 . 9 877 Remotely . | . . . . . . . . Salvage Created 4648 | . 763 108 2162 270 . 22 1323 Parts 232 | . 32 7 92 16 . 3 82 Haulers Intercepted 9 | . 2 . 4 . . . 3 Recyclers Shooed 6 | . 2 . 3 . . . 1 Parts Field Recycled . | . . . . . . . . Retrieved Matter . | . . . . . . . . Parts Self-Destructed . | . . . . . . . . Prevented . | . . . . . . . . Parts Restored . | . . . . . . . . Kills | -11 -10 -10 -9 -9 -9 -8 -8 ------- Run | Yrd Mat Min Mat Min Exi Min Mat Combat Hostiles Destroyed 100 | . 8 9 38 3 . . 42 Melee 2 | . . . 2 . . . . Guns 38 | . 2 1 22 2 . . 11 Cannons 37 | . 6 4 10 1 . . 16 AOE 22 | . . 4 3 . . . 15 Classes Destroyed 15 | . 6 1 5 1 . . 2 Worker 9 | . . . 5 . . 1 3 Builder 9 | . 2 . . 1 . . 6 Tunneler 1 | . . . . 1 . . . Hauler 9 | . 2 . 4 . . . 3 Recycler 16 | . 4 . 7 3 . . 2 Mechanic 1 | . . . . . . . 1 Watcher 11 | . 2 . 5 . . . 4 Swarmer 16 | . 3 3 7 . . . 3 Grunt 49 | . 5 . 18 3 . . 23 Brawler 3 | . . . 1 . . . 2 Duelist 2 | . . . 1 . . . 1 Protector 3 | . . . 1 . . . 2 Sentry 18 | . . . 10 . . . 8 Hunter 3 | . . . . . . . 3 Assembled 6 | . . 6 . . . . . Best Kill Streak 18 | . 7 5 8 3 . 1 18 Combat Bots Only 13 | . 3 5 6 2 . . 13 Max Kills in Single Turn 4 | . 2 3 2 1 . 1 4 Gunslinging 1 | . . . . . . . 1 Exploded 3 | . . 3 2 . . . 3 Melee 1 | . . . 1 . . . . Uniques/NPCs Destroyed . | . . . . . . . . Combat | -11 -10 -10 -9 -9 -9 -8 -8 -------- Run | Yrd Mat Min Mat Min Exi Min Mat Hostile Shots Fired 538 | . 38 63 189 9 . . 239 Missed 157 | . 14 11 65 5 . . 62 Hits 381 | . 24 52 124 4 . . 177 Melee 20 | . . 18 1 . . . 1 Projectile 361 | . 24 34 123 4 . . 176 AOE 13 | . . 13 . . . . . Critical Strikes 22 | . 1 2 3 1 . . 15 Damage Taken 6255 | . 274 1423 1588 58 . 4 2908 Core 1106 | . 50 189 295 18 . . 554 Absorbed by Shields . | . . . . . . . . Ignored by Resistances 58 | . . . . . . . 58 Core Remaining (%) 41 | 100 . 4 . . . 21 . Volleys Fired 270 | . 38 21 99 9 . 1 102 Largest 3 | . 2 2 3 3 . 3 3 Hottest 189 | . 120 125 189 121 . 121 185 Shots Fired 627 | . 76 36 282 27 . 3 203 Gun 350 | . 36 5 180 18 . 2 109 Cannon 254 | . 40 29 97 9 . 1 78 Launcher 23 | . . 2 5 . . . 16 Special . | . . . . . . . . Kinetic 220 | . 35 . 87 18 . 2 78 Thermal 384 | . 41 34 190 9 . 1 109 Explosive 23 | . . 2 5 . . . 16 Electromagnetic . | . . . . . . . . Robot Hit Streak 17 | . 13 4 17 8 . 1 14 Robot Miss Streak 7 | . 4 3 6 4 . 3 7 Penetration Max 1 | . . . . . . . 1 Secondary Targets 4 | . . . 1 . . . 3 Max Gunslinging Chain 1 | . . . 1 . . . 1 Shots Hit Robots 442 | . 44 21 198 22 . 1 156 Core Hits 334 | . 22 17 79 19 . 2 195 Critical Kills 1 | . . . 1 . . . . Critical Parts Destroyed . | . . . . . . . . Critical Strikes 11 | . . . 8 . . . 3 Burn 7 | . . . 7 . . . . Blast 3 | . . . . . . . 3 Smash 1 | . . . 1 . . . . Melee Attacks 19 | . . . 19 . . . . Impact 19 | . . . 19 . . . . Slashing . | . . . . . . . . Piercing . | . . . . . . . . Sneak Attacks . | . . . . . . . . Combat Hostiles . | . . . . . . . . Follow-up Attacks . | . . . . . . . . Damage Inflicted 12895 | . 735 568 4075 451 . 12 7054 Guns 3916 | . 234 47 1933 262 . 3 1437 Cannons 5078 | . 463 282 1447 139 . . 2747 Explosions 3333 | . . 238 275 . . . 2820 Melee 393 | . . . 393 . . . . Ramming 175 | . 38 1 27 50 . 9 50 Kinetic 4183 | . 234 . 930 272 . . 2747 Thermal 5200 | . 463 329 2450 129 . 3 1826 Explosive 2944 | . . 238 275 . . . 2431 Electromagnetic . | . . . . . . . . Impact 393 | . . . 393 . . . . Slashing . | . . . . . . . . Piercing . | . . . . . . . . Highest Corruption . | . . . . . . . . Average Corruption . | . . . . . . . . Corruption Purged . | . . . . . . . . Corruption Blocked . | . . . . . . . . Overload Shots . | . . . . . . . . Overflow Damage 355 | . 12 18 73 3 . . 249 Projectiles 177 | . 12 . 29 . . . 136 Explosions 131 | . . 18 . . . . 113 Melee 47 | . . . 44 3 . . . Knockbacks 21 | . . . 5 2 . . 14 Impact 2 | . . . 1 . . . 1 Kinetic 17 | . . . 3 2 . . 12 Secondary 2 | . . . 1 . . . 1 Self-Inflicted Damage 315 | . . 59 19 . . 4 233 Shots 8 | . . 2 1 . . . 5 Rammed 22 | . 7 . 4 3 . 1 7 Targets Rammed 27 | . 8 1 6 4 . 1 7 Kicked 1 | . . 1 . . . . . Crushed 4 | . 1 . 2 1 . . . Highest Temperature 413 | . 248 240 294 54 . 12 413 Average Temperature 82 | . 67 95 84 18 . 8 88 Received Heat Transfer 2295 | . 141 . 630 48 . . 1476 Siege Activations . | . . . . . . . . Martial Activations . | . . . . . . . . Shielding Activations . | . . . . . . . . Robots Disrupted . | . . . . . . . . Combat Hostiles . | . . . . . . . . Robots Corrupted 2 | . . . 1 1 . . . Combat Hostiles 1 | . . . 1 . . . . Parts Fried 1 | . . . . 1 . . . Impact Corruptions 3 | . . . 2 1 . . . Robots Melted . | . . . . . . . . Combat Hostiles . | . . . . . . . . Parts Melted 16 | . 1 1 13 . . . 1 Heat Transferred 9671 | . 962 703 5446 170 . 5 2385 Parts Sabotaged . | . . . . . . . . Parts Stolen . | . . . . . . . . Parts Stripped . | . . . . . . . . Power Chain Reactions . | . . . . . . . . Alert | -11 -10 -10 -9 -9 -9 -8 -8 ------- Run | Yrd Mat Min Mat Min Exi Min Mat Maximum Alert Level 3 | . . . 2 1 . . 3 Low Security (%) 72 | 100 100 100 27 85 . 100 83 Level 1 17 | . . . 46 14 . . 9 Level 2 9 | . . . 26 . . . 4 Level 3 . | . . . . . . . 2 Level 4 . | . . . . . . . . Level 5 . | . . . . . . . . High Security . | . . . . . . . . Max Security . | . . . . . . . . Peak Influence 740 | . 85 70 606 234 . 6 740 Initial 234 | . . . 1 234 . . . Average 155 | . 16 10 299 151 . . 159 Influence Increases 3329 | . 318 86 1194 110 . 6 1615 Destroy 0b10 Robot/C 1820 | . 160 60 740 60 . . 800 Destroy 0b10 Robot/NC 295 | . 50 . 110 25 . 5 105 Destroy Leader 490 | . 48 10 208 10 . . 214 Successful Hack 160 | . 59 . 54 . . . 47 Select Force Hacks 90 | . . . 30 . . . 60 Disable Machine 75 | . . . . . . . 75 Anti-Garrison Action 150 | . . . . . . . 150 Destroy Structure 174 | . 1 16 22 . . 1 134 Partial Spotted 15 | . . . 15 . . . . Lose Combat Pursuer 60 | . . . 15 15 . . 30 Influence Decreases 2599 | . 318 81 599 620 90 6 885 Entered New Map 460 | . . . 4 366 90 . . Time Decay 1778 | . 318 20 575 254 . 6 605 Lost Part 211 | . . 61 20 . . . 130 Purge Threat 150 | . . . . . . . 150 Squads Dispatched 17 | . 1 . 4 . . . 12 Investigation 5 | . . . 2 . . . 3 Extermination . | . . . . . . . . Reinforcement 3 | . 1 . 1 . . . 1 Assault 5 | . . . 1 . . . 4 Garrison 4 | . . . . . . . 4 Intercept . | . . . . . . . . Searches Triggered . | . . . . . . . . Construction Impeded 1 | . . . . . . . 1 Haulers Reinforced . | . . . . . . . . Active Scanning Responses . | . . . . . . . . Cargo Convoy Interrupts . | . . . . . . . . Stealth | -11 -10 -10 -9 -9 -9 -8 -8 --------- Run | Yrd Mat Min Mat Min Exi Min Mat Distress Signals 9 | . . . 4 . . . 5 Communications Jammed . | . . . . . . . . Distress Signals . | . . . . . . . . Times Spotted 149 | . 15 22 48 4 . . 60 Peak Tracking Total 10 | . 4 9 5 3 . . 10 Tactical Retreats 7 | . . 3 1 1 . . 2 Traps | -11 -10 -10 -9 -9 -9 -8 -8 ------- Run | Yrd Mat Min Mat Min Exi Min Mat Traps Triggered 2 | . . . 2 . . . . Indirectly . | . . . . . . . . Trap Hack Attempts . | . . . . . . . . Triggered . | . . . . . . . . Disarmed . | . . . . . . . . Reprogrammed . | . . . . . . . . Reused . | . . . . . . . . Traps Extracted . | . . . . . . . . Installed . | . . . . . . . . Triggered . | . . . . . . . . Machines | -11 -10 -10 -9 -9 -9 -8 -8 ---------- Run | Yrd Mat Min Mat Min Exi Min Mat Machines Disabled 6 | . . . . . . . 6 Max in Single Turn 3 | . . . . . . . 3 Garrison Access 1 | . . . . . . . 1 Machines Repaired . | . . . . . . . . Machines Dismantled . | . . . . . . . . Machines Sabotaged . | . . . . . . . . Overloaded Fab Kills . | . . . . . . . . Hacking | -11 -10 -10 -9 -9 -9 -8 -8 --------- Run | Yrd Mat Min Mat Min Exi Min Mat Machines Accessed 37 | . 9 . 11 . 2 . 15 Terminals 25 | . 7 . 7 . . . 11 Fabricators . | . . . . . . . . Repair Stations 1 | . . . . . . . 1 Recycling Units 5 | . 2 . 2 . . . 1 Scanalyzers 3 | . . . 2 . . . 1 Garrison Access 1 | . . . . . . . 1 Total Hacks 106 | . 22 . 35 . 2 . 47 Successful 59 | . 12 . 17 . 2 . 28 Failed 46 | . 10 . 18 . . . 18 Catastrophic 6 | . 1 . 2 . . . 3 Database Lockouts 1 | . . . . . . . 1 Manual 59 | . 15 . 18 . 1 . 25 Terminals 74 | . 17 . 20 . . . 37 Fabricators . | . . . . . . . . Repair Stations 2 | . . . . . . . 2 Recycling Units 18 | . 5 . 9 . . . 4 Scanalyzers 7 | . . . 6 . . . 1 Garrison Access 3 | . . . . . . . 3 Terminal Hacks 32 | . 7 . 4 . 2 . 19 Record 1 | . . . . . 1 . . Robot Analysis 5 | . 4 . . . . . 1 Prototype ID Bank 4 | . . . . . . . 4 Branch Access Points 1 | . . . 1 . . . . Emergency Access Points 2 | . . . . . . . 2 Machine Index 1 | . . . . . . . 1 Terminal Index 1 | . . . . . . . 1 Alert Level 3 | . . . 1 . . . 2 Unreport Threat 1 | . . . . . . . 1 Locate Traps 8 | . 3 . 1 . . . 4 Transport Status 1 | . . . . . . . 1 Hauler Manifests 2 | . . . 1 . . . 1 Zone Layout 1 | . . . . . . . 1 Proto ID Catalog 1 | . . . . . 1 . . Fabricator Hacks . | . . . . . . . . Repair Station Hacks 1 | . . . . . . . 1 Scan Component 1 | . . . . . . . 1 Recycling Unit Hacks 1 | . . . 1 . . . . Retrieve Components 1 | . . . 1 . . . . Scanalyzer 4 | . . . 4 . . . . Retrieve Study 4 | . . . 4 . . . . Garrison Access Hacks . | . . . . . . . . Unauthorized Hacks 21 | . 5 . 8 . . . 8 Terminals 10 | . 4 . 3 . . . 3 Botnet 10 | . 4 . 3 . . . 3 Fabricators . | . . . . . . . . Repair Stations . | . . . . . . . . Recycling Units 10 | . 1 . 5 . . . 4 Reject 3 | . . . 2 . . . 1 Recyclers 1 | . . . . . . . 1 Mask 4 | . 1 . 2 . . . 1 Tunnel 2 | . . . 1 . . . 1 Scanalyzers 1 | . . . . . . . 1 Extract 1 | . . . . . . . 1 Garrison Access . | . . . . . . . . Data Cores Recovered . | . . . . . . . . Used . | . . . . . . . . Hacking Detections 33 | . 9 . 11 . . . 13 Full Trace Events 1 | . . . . . . . 1 Feedback Events . | . . . . . . . . Feedback Blocked . | . . . . . . . . Robot Schematics Acquired . | . . . . . . . . Robots Built . | . . . . . . . . Authchips . | . . . . . . . . Time . | . . . . . . . . Total Robot Build Rating . | . . . . . . . . Part Schematics Acquired 4 | . . . . . . . 4 Parts Built . | . . . . . . . . Authchips . | . . . . . . . . Time . | . . . . . . . . Total Part Build Rating . | . . . . . . . . Part Studies Acquired 4 | . . . 4 . . . . Parts Repaired . | . . . . . . . . Time . | . . . . . . . . Parts Recycled . | . . . . . . . . Recycled Matter . | . . . . . . . . Retrieved Matter . | . . . . . . . . Retrieved Components 6 | . . . 6 . . . . Parts Scanalyzed . | . . . . . . . . Part Schematics Acquired . | . . . . . . . . Parts Damaged . | . . . . . . . . Bothacking | -11 -10 -10 -9 -9 -9 -8 -8 ------------ Run | Yrd Mat Min Mat Min Exi Min Mat Used RIF Installer . | . . . . . . . . Robots Hacked . | . . . . . . . . Non-combat . | . . . . . . . . Combat . | . . . . . . . . Robot Hacks Applied . | . . . . . . . . Relay Couplers Released 2 | . . . . . . . 2 Machine Destruction 2 | . . . . . . . 2 Fabnet Peak Effective % . | . . . . . . . . Robots Rewired . | . . . . . . . . Allies Hacked . | . . . . . . . . Hacks Repelled . | . . . . . . . . Allies | -11 -10 -10 -9 -9 -9 -8 -8 -------- Run | Yrd Mat Min Mat Min Exi Min Mat Total Allies . | . . . . . . . . Largest Group . | . . . . . . . . Highest-Rated Group . | . . . . . . . . Highest-Rated Ally . | . . . . . . . . Total Orders . | . . . . . . . . Ally Attacks . | . . . . . . . . Total Damage . | . . . . . . . . Kills . | . . . . . . . . Allies Corrupted . | . . . . . . . . Allies Melted . | . . . . . . . . Intel | -11 -10 -10 -9 -9 -9 -8 -8 ------- Run | Yrd Mat Min Mat Min Exi Min Mat Active Infowar (turns) 466 | . . 189 277 . . . . Optics 466 | . . 189 277 . . . . Robot Analysis Total 5 | . 4 . . . . . 1 Derelict Logs Recovered 3 | . . 1 . 2 . . . Drone Launches . | . . . . . . . . Drone Recoveries . | . . . . . . . . Exploration | -11 -10 -10 -9 -9 -9 -8 -8 ------------- Run | Yrd Mat Min Mat Min Exi Min Mat Turns Passed 7700 | 94 1617 257 2130 552 324 229 2497 Spaces Moved 3286 | 53 633 63 944 305 216 150 922 Core 3 | 3 . . . . . . . Treads 1855 | 50 633 59 822 200 . . 91 Legs 166 | . . 4 122 . . . 40 Wheels 1262 | . . . . 105 216 150 791 Hover . | . . . . . . . . Flight . | . . . . . . . . Fastest Speed 50 | 50 160 240 120 150 150 150 120 Average Speed 178 | 153 222 298 155 164 150 150 182 Slowest Speed 320 | 160 240 320 260 200 150 150 260 Overloaded Moves . | . . . . . . . . Propulsion Burnouts . | . . . . . . . . Robots Hopped . | . . . . . . . . Potential Cave-ins . | . . . . . . . . Cave-ins Triggered . | . . . . . . . . Exploration Rate (%) 55 | 3 94 19 89 63 61 38 73 Regions Visited 7 Branch Regions 4 Pre-discovered Areas 5 | . . . 1 2 1 . 1 Known Exits Taken 1 | . . . 1 . . . . Unknown Exits Taken 6 | 1 1 1 . 1 1 1 . Scrap Searched 2 | . . . . 2 . . . Spaces Dug . | . . . . . . . . Terrain Destroyed 203 | . . 20 23 . . 1 159 Melee . | . . . . . . . . Projectile 34 | . . . 2 . . 1 31 AOE 169 | . . 20 21 . . . 128 Terrain Rammed . | . . . . . . . . Walls Destroyed . | . . . . . . . . Machines Disabled . | . . . . . . . . Actions | -11 -10 -10 -9 -9 -9 -8 -8 --------- Run | Yrd Mat Min Mat Min Exi Min Mat Total 4501 | 62 757 96 1366 334 217 151 1518 Wait 624 | . 46 2 176 7 . . 393 Move 3279 | 52 632 62 943 304 215 149 922 Hop . | . . . . . . . . Pick Up 81 | 3 15 . 33 3 1 . 26 Fast Attach 30 | 6 4 . 12 1 . . 7 Attach 30 | . . 10 7 . . . 13 Detach 13 | . 3 . 6 . . . 4 Swap 44 | 1 6 . 23 2 . . 12 Drop 84 | . 5 . 42 4 1 . 32 Fire 270 | . 38 21 99 9 . 1 102 Melee 19 | . . . 19 . . . . Ram 8 | . . . . . . 1 7 Kick 1 | . . 1 . . . . . Crush 18 | . 8 . 6 4 . . . Escape Stasis . | . . . . . . . . Rewire . | . . . . . . . . Trap . | . . . . . . . . Miscellaneous . | . . . . . . . . Route ------- -11/Scrapyard -10/Materials (discovered 5 exits: *Mat x3 / [*Min x2]) -10/Mines -9/Materials (discovered 4 exits: *Mat x2 / *Min x2) -9/Mines (discovered 3 exits: *Mat x2 / *Exi) -9/Exiles -8/Mines -8/Materials (discovered 4 exits: [*Fac x2] / [*Sto x2]) History --------- Turn | Location | Event 8 | -11/Scrapyard | Discovered new exit (range 15) 95 | -11/Scrapyard | Entered Materials 319 | -10/Materials | Build established: Mutant 508 | -10/Materials | Discovered new exit (range 14) 1112 | -10/Materials | Discovered new exit (range 13) 1396 | -10/Materials | Discovered new exit (range 9) 1581 | -10/Materials | Discovered new exit (range 11) 1658 | -10/Materials | Discovered new exit (range 8) 1712 | -10/Materials | Entered Mines 1736 | -10/Mines | Assembled infested the area 1778 | -10/Mines | Core integrity fell below 50% 1802 | -10/Mines | Lost 5 parts (2n1u2w) 1888 | -10/Mines | Discovered new exit (range 8) 1894 | -10/Mines | Learned Materials garrison access intel 1958 | -10/Mines | Core integrity fell below 20% 1969 | -10/Mines | Entered Materials 1969 | -9/Materials | Evolved 2 slots: Propulsion x1, Weapon x1 1988 | -9/Materials | Lost 7 parts (1p3n3w) 2417 | -9/Materials | Discovered new exit (range 15) 2544 | -9/Materials | Build established: Scavenger-Gunner 2870 | -9/Materials | Identified exit to Mines 2964 | -9/Materials | Core integrity fell below 50% 3474 | -9/Materials | Discovered new exit (range 16) 3814 | -9/Materials | Discovered new exit (range 16) 3969 | -9/Materials | First assault squad dispatched 4099 | -9/Materials | Entered Mines 4115 | -9/Mines | Discovered new exit (range 11) 4119 | -9/Mines | Met a Derelict bent on vengeance 4234 | -9/Mines | Discovered new exit (range 6) 4304 | -9/Mines | Found DCF Scrap (12 items) 4507 | -9/Mines | Learned location of Zion (-6) 4559 | -9/Mines | Learned location of Storage (-8) 4594 | -9/Mines | Deemed a non-threat by the Exiles lab entrance 4609 | -9/Mines | Build established: Gunner 4645 | -9/Mines | Discovered new exit (range 5) 4651 | -9/Mines | Entered Exiles 4687 | -9/Exiles | Met 8R-AWN 4714 | -9/Exiles | Met EX-HEX 4762 | -9/Exiles | Met EX-BIN 4779 | -9/Exiles | Aligned with FarCom system 4780 | -9/Exiles | Given EX-Vault access code 4818 | -9/Exiles | Opened EX-Vault 4827 | -9/Exiles | Found Chronowheel 4855 | -9/Exiles | Warned to stay clear of 0b10 Research branches 4880 | -9/Exiles | Exiles lab attacked by MAIN.C 4963 | -9/Exiles | Discovered new exit (range 10) 4975 | -9/Exiles | Left Exiles lab with Chronowheel 4975 | -9/Exiles | Entered Mines 5193 | -8/Mines | Discovered new exit (range 8) 5204 | -8/Mines | Entered Materials 5204 | -8/Materials | Evolved 2 slots: Utility x2 5205 | -8/Materials | Loaded intel: 1 garrison access location 5503 | -8/Materials | Build established: Tank 5789 | -8/Materials | Central database locked down 5802 | -8/Materials | Discovered new exit (range 12) 5943 | -8/Materials | Discovered new exit (range 3) 6572 | -8/Materials | Garrison activated, responded to threat 6903 | -8/Materials | Discovered new exit (range 15) 7340 | -8/Materials | Discovered new exit (range 3) 7469 | -8/Materials | Garrison activated, responded to threat 7556 | -8/Materials | Core integrity fell below 50% 7578 | -8/Materials | Destroyed 13 combat bots 7591 | -8/Materials | Lost 8 parts (1p3n1u3w) 7600 | -8/Materials | Core integrity fell below 20% 7604 | -8/Materials | First assault squad dispatched 7701 | -8/Materials | Destroyed by G-47 Trooper with Particle Gun Last Messages --------------- 07681_ G-50 Soldier unfolds itself. 07681_ G-47 Trooper unfolds itself. 07681_ I-25 Savior unfolds itself. 07687_ I-25 Savior destroyed. 07687_ Switching to secondary target: G-47 Trooper. 07687_ G-47 Trooper destroyed. 07689_ Critical hit (Burn: +37). 07695_ Carbon-fiber Leg destroyed. 07698_ G-47 Trooper overheating. 07699_ Carbon-fiber Leg destroyed. 07699_ Critical hit (Burn: +37). 07699_ G-47 Trooper suffers critical hit (Burn). 07700_ G-47 Trooper heat spikes uncontrollably. 07700_ Spread Laser destroyed. 07700_ Lgt. Nuclear Core melted. 07700_ G-47 Trooper destroyed. 07700_ Switching to secondary target: G-47 Trooper. 07701_ Critical hit (Burn: +37). Map ----- +----------------------------------------------------+ | ????????????????# #??????#! #?????###????# | | ????????#####???# #??????#! ############## | | ??????### # ##??# #?????##! | | ??????# #### #??????##! % ############# | | ????### # ## #???????#### ####????????# | | ????# ## ##?????????# #???????????# | | ????## " =#%! #######???# #???????????# | | ????# #! | #????????###### | | ????# +*% #????????# | | ????## % * #??????### | | ????## # ###+####??????#"" | | ???# # * = ## #" #?????????????#"T """ | | ???# " # ##!!//!!#?????????????#"" """ | | ???# ""# # #??!//!!#?????????????### """ | | ???## =# # #???#####???????????????# | | ????###### #* # #???????????????????????# | | ????? ?### #### #???????????????????????#####+ | | ???? ####|#### ##????????????????????????# | | ??? + !! = ########?????????????????# | | ?? ?# ## %%*#?????????????????# | | ??? ?# ##= %=!!#???????????#####?# | | ?????? ?+ ## !g #???????????#"""#?# | | ????????#### ## ####%*g#??????????##"T"#### | | ???????????# ########??# #??????????# ]]! # | | ???????????# #?????????# #???o??????# [ ] # | | ???????????# #?????????#@ #??????????# *] + | | ??????????? ?????????# ?????# # | | ??????????? ?????????# ##### #????# # | | ??????????? ????????? #??????????######### | | ??????????? ?????????##;##??????????????????### | | ???????????####??????????? ?????????????????????? | | ?????????????????????????? ?????????????????????? | | ?????????????????????????? ????????????????????? | | ?????????????????????????? ????????????????????? | | ?????????????????????????? ????????????????????? | | ?????????????????????????? ""???????????????????? | | ?????????????????????????? ""???????????????????? | | ??????????????????????????? "????????????????????? | | ??????????????????????????? ????????????????????? | | ???????????????????????????##????????????????????? | | ?????????????????????????????????????????????????? | | ?????????????????????????????????????????????????? | | ?????????????????????????????????????????????????? | | | | | | | | | | | | | | | +----------------------------------------------------+ Best States ------------- Heat Dissipation 64 Coolant Potential 50 Energy Generation 14 Energy Capacity 280 Matter Stores 300 Matter Capacity 300 Sight Range 18 Terrain Scan Density 10 Armor Coverage 300 Resistance: TH 10 Evasion (%) 55 Recoil Reduction 3 Item Schematics ----------------- Hvy. Particle Gun | -8/Materials | Extracted Reactive Plating | -8/Materials | Extracted Adv. Visual Processing Unit | -8/Materials | Extracted Lrg. Storage Unit | -8/Materials | Extracted Robot Schematics ------------------ None Fabricated ------------ Nothing Repaired ---------- Nothing Studied --------- Lgt. Treads | -9/Materials | Hacked Imp. Aluminum Leg | -9/Materials | Hacked Imp. Light Cannon | -9/Materials | Hacked Imp. Ion Engine | -9/Materials | Hacked Alien Tech Used ----------------- None Achievements -------------- None Challenges ------------ None Game ------ Seed LauncherDimensionalComputer Manual? 0 Play Time 00:58:17 Cumulative 259.6 hours Start 2026.08.24 @ 19:19:34 End 2026.08.24 @ 20:22:51 Sessions 1 Manual Loads 0 Difficulty Rogue Special Mode None Game No. 147 Rogue 147 Adventurer 0 Explorer 0 Win Type - Total 5 Types 5/0/0/0/0/0/0/0/0/0 Lore% 81 Gallery% 70 Achievement% 61 Wizard Run 0 Options --------- Layout 1 ASCII 0 Keyboard 0 Movement Numpad Keybinds 0 Fullscreen 1 Font 24/Smallcaps Map View 50x35 Zoom Use 0% Tactical HUD 1 Map Filters NONE Filters NONE Steam 1 RUN: ef040803-6308-46d9-9912-0f7ca040399b